bitfinex/quotes_ETHUSD_20250524
["timestamp","ask_amount","ask_price","bid_price","bid_amount"]
[1748101745956,3.92249156,2549.4,2549.3,16.927]
[1748101746108,18.11074677,2549.4,2549.3,43.486]
[1748101746308,18.11074677,2549.4,2549.3,16.927]
[1748101746657,19.95442851,2549.4,2549.3,31.642]
[1748101746817,22.34210763,2549.4,2549.3,31.642]
[1748101747012,34.09710763,2549.4,2549.3,31.642]
[1748101748853,34.71862688,2549.4,2549.3,31.642]
[1748101749666,4.54401081,2549.4,2549.3,31.642]
[1748101749809,0.62151925,2549.4,2549.3,32.92527792]
[1748101750013,3.92218387,2549.6,2549.3,32.92527792]
[1748101750239,3.92233771,2549.5,2549.4,12.22987792]
[1748101750456,11.92233771,2549.5,2549.4,11.756]
[1748101750839,3.92233771,2549.5,2549.4,11.756]
[1748101751147,3.92249156,2549.4,2549.3,17.7364]
[1748101751456,3.92249156,2549.4,2549.3,44.2084]
[1748101751658,3.92249156,2549.4,2549.3,44.20752661]
[1748101756750,13.89919287,2549.4,2549.3,16.929]
[1748101756957,13.89919287,2549.4,2549.3,43.401]
[1748101757351,13.89919287,2549.4,2549.3,31.645]
[1748101757556,13.89919287,2549.4,2549.3,43.401]
[1748101758355,13.89919287,2549.4,2549.3,31.645]
[1748101758743,13.89919287,2549.4,2549.3,43.401]
[1748101759901,18.77974808,2549.4,2549.3,43.401]
[1748101760559,18.77974808,2549.4,2549.3,31.645]
[1748101760759,18.77974808,2549.4,2549.3,43.401]
[1748101770418,20.09634808,2549.4,2549.3,31.645]
[1748101770819,31.85334808,2549.4,2549.3,31.645]
[1748101772231,3.9227993,2549.2,2549.1,0.05]
[1748101772406,15.91207067,2549.2,2549.1,0.05]
[1748101772617,15.87279239,2549.2,2549.1,0.05]
[1748101773095,16.49484924,2549.2,2549.1,0.05]
[1748101775115,17.04484924,2549.2,2549.1,0.05]
[1748101776240,16.49484924,2549.2,2549.1,0.05]
[1748101776605,17.04484924,2549.2,2549.1,0.05]
[1748101776802,16.42279239,2549.2,2549.1,0.05]
[1748101777532,21.3033476,2549.2,2549.1,0.05]
[1748101782945,22.1029476,2549.2,2549.1,0.05]
[1748101783674,32.2929476,2549.2,2549.1,0.05]
[1748101784470,32.91500445,2549.2,2549.1,0.05]
[1748101786033,32.2929476,2549.2,2549.1,0.05]
[1748101787135,44.0519476,2549.2,2549.1,0.05]
[1748101787369,4.47372282,2548.6,2548.5,16.932]
[1748101787573,17.35427803,2548.6,2548.5,31.654]
[1748101794376,16.80427803,2548.6,2548.5,31.654]
[1748101795481,18.93933356,2548.6,2548.5,31.654]
[1748101795788,19.48933356,2548.6,2548.5,31.654]
[1748101796196,20.26193356,2548.6,2548.5,31.654]
[1748101797489,19.48933356,2548.6,2548.5,31.654]
[1748101799306,19.48933356,2548.6,2548.5,16.932]
[1748101799488,19.48933356,2548.6,2548.5,31.656]
[1748101800907,16.80427803,2548.6,2548.5,31.656]
[1748101801102,3.92372282,2548.6,2548.5,32.439]
[1748101801485,11.92372282,2548.6,2548.5,32.439]
[1748101803575,11.92372282,2548.6,2548.5,31.656]
[1748101804537,11.92372282,2548.6,2548.5,43.417]
[1748101804538,12.47372282,2548.6,2548.5,43.417]
[1748101804746,14.11345462,2548.6,2548.5,31.656]
[1748101804887,14.11345462,2548.6,2548.5,16.932]
[1748101805087,14.11345462,2548.6,2548.5,31.656]
[1748101806815,19.78760983,2548.6,2548.5,31.656]
[1748101811189,12.47403076,2548.4,2548.3,11.761]
[1748101811490,16.03758501,2548.4,2548.3,14.749]
[1748101812297,12.47403076,2548.4,2548.3,14.749]
[1748101815445,11.92403076,2548.4,2548.3,14.749]
[1748101815945,16.80458597,2548.4,2548.3,14.749]
[1748101816447,8.80458597,2548.4,2548.3,15.5601]
[1748101817645,16.80458597,2548.4,2548.3,15.5601]
[1748101819256,16.80458597,2548.4,2548.3,32.4981]
[1748101820260,16.73088597,2548.4,2548.3,32.4981]
[1748101821757,11.85033076,2548.4,2548.3,32.4981]
[1748101825356,11.85033076,2548.4,2548.3,17.7491]
[1748101825547,11.85033076,2548.4,2548.3,44.2581]
[1748101827233,3.85033076,2548.4,2548.3,44.2581]
[1748101830226,3.85033076,2548.4,2548.3,44.2561]
[1748101830626,3.88960904,2548.4,2548.3,31.685]
[1748101830828,3.85033076,2548.4,2548.3,43.445]
[1748101832969,11.85033076,2548.4,2548.3,44.247]
[1748101841580,3.85033076,2548.4,2548.3,44.247]
[1748101843401,3.85033076,2548.4,2548.3,32.487]
[1748101843602,3.85033076,2548.4,2548.3,44.247]
[1748101846182,3.85033076,2548.4,2548.3,43.464]
[1748101848073,3.85033076,2548.4,2548.3,44.2808]
[1748101850367,4.88055521,2549.0,2548.4,0.8096]
[1748101850603,8.0,2548.9,2548.4,0.8096]
[1748101850815,3.92387679,2548.5,2548.4,0.8096]
[1748101852611,3.92387679,2548.5,2548.4,12.5686]
[1748101854893,4.88055521,2549.2,2548.5,0.8096]
[1748101855097,3.92372282,2548.6,2548.5,0.8096]
[1748101861335,3.92358465,2548.7,2548.5,0.8096]
[1748101861503,3.92356678,2548.8,2548.5,0.8096]
[1748101861703,3.92304253,2549.1,2548.5,0.8096]
[1748101862036,3.92360866,2548.7,2548.5,0.8096]
[1748101862233,4.88055521,2549.4,2548.5,1.27727654]
[1748101862393,3.92324169,2549.0,2548.7,0.7619]
[1748101862743,3.92326101,2548.9,2548.8,26.522]
[1748101867299,3.92317878,2549.0,2548.8,26.522]
[1748101867546,3.92326101,2548.9,2548.8,26.522]
[1748101868922,3.92218387,2549.6,2548.9,0.7997]
[1748101869137,3.9221351,2549.7,2549.2,3.92277537]
[1748101869335,0.62274564,2550.0,2549.4,0.7997]
[1748101869524,3.92181647,2549.9,2549.6,0.7997]
[1748101869720,4.54438547,2550.0,2549.7,11.757]
[1748101869909,0.62274564,2550.0,2549.8,31.649]
[1748101870105,4.54431426,2550.0,2549.9,0.7997]
[1748101870305,3.92156862,2550.0,2549.9,0.7997]
[1748101872097,3.92156862,2550.0,2549.9,8.0]
[1748101872345,3.92156862,2550.0,2549.9,34.472]
[1748101872643,3.92172242,2549.9,2549.8,16.93]
[1748101872936,3.92172242,2549.9,2549.8,43.402]
[1748101873115,3.92172242,2549.9,2549.8,51.402]
[1748101876802,3.92172242,2549.9,2549.8,39.647]
[1748101877044,3.92172242,2549.9,2549.8,51.401]
[1748101877756,3.92156862,2550.0,2549.9,8.0]
[1748101877961,4.88055521,2550.4,2549.9,8.0]
[1748101878264,3.92112142,2550.3,2550.0,0.7874]
[1748101878746,3.92131448,2550.2,2550.0,0.7874]
[1748101879710,3.92141484,2550.1,2550.0,0.7874]
[1748101887653,3.92126294,2550.2,2550.0,0.7874]
[1748101887654,3.9213399,2550.2,2550.0,0.7874]
[1748101887951,3.92141484,2550.1,2550.0,0.7874]
[1748101890160,0.7855,2550.8,2550.0,0.7874]
[1748101890366,3.92119448,2550.3,2550.0,0.7874]
[1748101890657,3.92126107,2550.2,2550.0,0.7874]
[1748101891239,3.92141484,2550.1,2550.0,0.7874]
[1748101894326,3.92141484,2550.1,2550.0,23.4984]
[1748101894758,3.92141484,2550.1,2550.0,22.711]
[1748101895070,3.92141484,2550.1,2550.0,34.462]
[1748101896477,3.92141484,2550.1,2550.0,34.461]
[1748101907996,4.69471484,2550.1,2550.0,22.711]
[1748101908290,4.69471484,2550.1,2550.0,34.462]
[1748101908597,4.69471484,2550.1,2550.0,8.0]
[1748101908823,4.69471484,2550.1,2549.8,16.93]
[1748101908824,4.69502242,2549.9,2549.8,16.93]
[1748101909112,4.69502242,2549.9,2549.8,43.392]
[1748101909257,4.69502242,2549.9,2549.8,51.392]
[1748101910399,4.69502242,2549.9,2549.8,39.641]
[1748101910600,4.7343007,2549.9,2549.8,43.393]
[1748101910765,6.07819148,2549.9,2549.8,43.393]
[1748101910965,6.07819148,2549.9,2549.8,51.393]
[1748101911162,6.07819148,2549.9,2549.8,39.642]
[1748101911390,6.0389132,2549.9,2549.8,51.393]
[1748101915500,4.69502242,2549.9,2549.8,51.393]
[1748101920245,4.69502242,2549.9,2549.8,39.642]
[1748101920388,4.69502242,2549.9,2549.8,51.395]
[1748101921324,4.69502242,2549.9,2549.8,39.642]
[1748101921526,4.69502242,2549.9,2549.8,51.395]
[1748101921721,6.52304089,2549.9,2549.8,51.395]
[1748101924457,3.92172242,2549.9,2549.8,51.395]
[1748101924611,3.92172242,2549.9,2549.8,52.1959]
[1748101925491,3.91893346,2549.9,2549.8,52.1959]
[1748101931599,3.92157497,2550.0,2549.8,52.1959]
[1748101931808,3.92141484,2550.1,2550.0,0.8141]
[1748101935052,3.92156862,2550.0,2549.9,8.0]
[1748101936764,3.92156862,2550.0,2549.9,22.709]
[1748101939463,3.92156862,2550.0,2549.9,34.461]
[1748101941542,3.92156862,2550.0,2549.9,22.709]
[1748101941745,4.69506862,2550.0,2549.9,34.46]
[1748101942070,3.92172242,2549.9,2549.8,16.93]
[1748101942370,3.92172242,2549.9,2549.8,43.39]
[1748101942661,3.92172242,2549.9,2549.8,51.39]
[1748101944165,4.69522242,2549.9,2549.8,51.391]
[1748101946668,3.92172242,2549.9,2549.8,51.391]
[1748101954489,3.92172242,2549.9,2549.8,52.2008]
[1748101960070,3.92172242,2549.9,2549.8,51.391]
[1748101962435,3.92172242,2549.9,2549.8,51.388]
[1748101966877,3.92106005,2550.4,2550.0,0.8097]
[1748101967216,3.92135362,2550.2,2550.0,0.8097]
[1748101967454,3.92141484,2550.1,2550.0,0.8097]
[1748101967666,3.9212237,2550.3,2550.0,0.8097]
[1748101967924,5.30789606,2550.8,2550.2,0.8097]
[1748101967925,0.62274564,2550.8,2550.2,0.8097]
[1748101968159,3.92078851,2550.6,2550.3,26.458]
[1748101968448,0.62274564,2550.8,2550.5,0.8097]
[1748101968929,3.92042713,2550.8,2550.5,0.8097]
[1748101969084,3.92053065,2550.7,2550.5,0.8097]
[1748101969728,3.92064612,2550.6,2550.5,0.8097]
[1748101972431,3.92049241,2550.7,2550.6,8.0]
[1748101972591,3.92044099,2550.8,2550.6,8.0]
[1748101972791,3.92049241,2550.7,2550.6,8.0]
[1748101976892,3.92049241,2550.7,2550.6,19.749]
[1748101982343,3.9204163,2550.8,2550.6,19.749]
[1748101982642,3.92049241,2550.7,2550.6,19.749]
[1748101984347,3.92049241,2550.7,2550.6,19.748]
[1748101986123,3.92049241,2550.7,2550.6,36.666]
[1748101990763,3.92049241,2550.7,2550.6,51.367]
[1748101990964,3.92035062,2550.8,2550.6,52.1521]
[1748101991262,3.92049241,2550.7,2550.6,52.1521]
[1748101991959,0.05,2550.9,2550.6,55.28757472]
[1748101992161,0.05,2550.9,2550.8,8.0]
[1748101993168,3.97018503,2550.9,2550.8,34.447]
[1748101997485,3.97018503,2550.9,2550.8,22.698]
[1748101997646,4.78888503,2550.9,2550.8,34.446]
[1748102001240,3.97018503,2550.9,2550.8,34.446]
[1748102001672,3.97018503,2550.9,2550.8,51.362]
[1748102002180,4.77868503,2550.9,2550.8,24.916]
[1748102002340,5.6485591,2550.9,2550.8,51.361]
[1748102002543,4.77868503,2550.9,2550.8,51.361]
[1748102005596,4.77868503,2550.9,2550.8,39.614]
[1748102005897,4.77868503,2550.9,2550.8,51.361]
[1748102006188,3.97018503,2550.9,2550.8,51.361]
[1748102007795,3.97018503,2550.9,2550.8,39.614]
[1748102007995,6.16235462,2550.9,2550.8,39.614]
[1748102008141,6.16235462,2550.9,2550.8,51.362]
[1748102008643,6.16235462,2550.9,2550.8,31.614]
[1748102008985,6.16235462,2550.9,2550.8,51.362]
[1748102009890,6.16235462,2550.9,2550.8,39.614]
[1748102010041,6.16235462,2550.9,2550.8,51.362]
[1748102012884,6.16235462,2550.9,2550.8,39.614]
[1748102013079,6.71235462,2550.9,2550.8,43.362]
[1748102013241,11.59290983,2550.9,2550.8,51.362]
[1748102013443,11.59290983,2550.9,2550.8,31.614]
[1748102013883,11.59290983,2550.9,2550.8,24.916]
[1748102014089,11.59290983,2550.9,2550.8,39.615]
[1748102014899,12.21565547,2550.9,2550.8,31.615]
[1748102016391,11.59290983,2550.9,2550.8,31.615]
[1748102021502,11.59290983,2550.9,2550.8,39.615]
[1748102028069,11.04290983,2550.9,2550.8,39.615]
[1748102028271,8.85074024,2550.9,2550.8,39.615]
[1748102032938,9.67424024,2550.9,2550.8,39.615]
[1748102038235,8.85074024,2550.9,2550.8,39.615]
[1748102038932,8.85074024,2550.9,2550.8,40.4287]
[1748102039102,3.97018503,2550.9,2550.8,40.4287]
[1748102041446,3.97018503,2550.9,2550.8,39.615]
[1748102043551,3.97018503,2550.9,2550.8,51.365]
[1748102048030,3.97018503,2550.9,2550.8,39.615]
[1748102048225,3.97018503,2550.9,2550.8,51.365]
[1748102048771,8.85074024,2550.9,2550.8,51.365]
[1748102054131,0.05,2550.9,2550.8,52.1923]
[1748102054653,3.97018503,2550.9,2550.8,52.65997654]
[1748102054853,3.97018503,2550.9,2550.8,25.7433]
[1748102055070,3.97018503,2550.9,2550.8,52.1863]
[1748102059803,0.05,2550.9,2550.8,52.1863]
[1748102060954,3.97018503,2550.9,2550.8,52.1863]
[1748102062650,0.05,2550.9,2550.8,52.1863]
[1748102067015,0.05,2550.9,2550.8,56.10663871]
[1748102068174,0.05,2550.9,2550.8,52.1863]
[1748102068575,0.05,2550.9,2550.8,56.10663871]
[1748102070114,0.05,2550.9,2550.8,56.57431525]
[1748102071574,0.05,2550.9,2550.8,52.65397654]
[1748102072003,0.05,2550.9,2550.8,52.1863]
[1748102074015,0.05,2550.9,2550.8,56.10663871]
[1748102075311,3.9194598,2551.4,2551.0,0.7881]
[1748102075489,3.91957513,2551.3,2551.0,0.7881]
[1748102075818,3.91965117,2551.3,2551.0,0.7881]
[1748102075993,3.91948056,2551.4,2551.0,0.7881]
[1748102076194,3.91948922,2551.4,2551.0,0.7881]
[1748102076893,3.91959428,2551.3,2551.0,0.7881]
[1748102077094,4.68177484,2551.7,2551.0,0.7881]
[1748102077307,3.91987769,2551.1,2551.0,0.7881]
[1748102077496,3.91987769,2551.1,2551.0,35.2211]
[1748102087538,3.91980324,2551.2,2551.1,8.0]
[1748102088037,3.91980324,2551.2,2551.1,19.745]
[1748102088935,3.91980324,2551.2,2551.1,8.0]
[1748102089162,3.91980324,2551.2,2551.1,19.745]
[1748102091550,3.91980324,2551.2,2551.1,36.658]
[1748102093451,0.8037,2551.9,2551.1,36.658]
[1748102093637,0.05,2551.9,2551.4,0.7814]
[1748102093873,0.05,2551.9,2551.5,22.683]
[1748102094151,3.91887675,2551.8,2551.7,8.0]
[1748102101676,3.91887675,2551.8,2551.7,24.911]
[1748102103463,3.91887675,2551.8,2551.7,25.7039]
[1748102104033,0.05,2551.9,2551.7,25.7039]
[1748102104233,0.05,2551.9,2551.8,0.03917868]
[1748102104579,3.9687277,2551.9,2551.7,25.7039]
[1748102104735,3.91880241,2551.8,2551.7,24.911]
[1748102104937,4.70755542,2551.8,2551.7,31.592]
[1748102105214,5.51425542,2551.8,2551.7,43.335]
[1748102105358,5.51425542,2551.8,2551.7,51.335]
[1748102106199,4.72550241,2551.8,2551.7,51.335]
[1748102112508,3.91880241,2551.8,2551.7,51.335]
[1748102114020,0.05,2551.9,2551.8,8.0]
[1748102114479,3.96864884,2551.9,2551.8,8.0]
[1748102114673,0.05,2551.9,2551.8,8.0]
[1748102114877,0.05,2551.9,2551.8,8.8055]
[1748102115078,3.91805384,2552.3,2551.9,0.8091]
[1748102115275,3.91794924,2552.4,2552.0,8.0]
[1748102115471,3.91795419,2552.4,2552.2,8.8091]
[1748102115676,0.62274564,2552.7,2552.4,8.0]
[1748102115913,4.54016641,2552.7,2552.6,8.8091]
[1748102116114,3.91742077,2552.7,2552.6,8.8091]
[1748102116317,1.96150185,2552.8,2552.6,8.8091]
[1748102116514,1.96150185,2552.8,2552.7,24.911]
[1748102117581,0.05,2552.9,2552.8,8.0]
[1748102117780,0.05,2552.9,2552.8,22.673]
[1748102121132,3.96711387,2552.9,2552.8,34.411]
[1748102123134,3.96711387,2552.9,2552.8,34.41]
[1748102124037,3.96711387,2552.9,2552.8,8.0]
[1748102124251,3.96711387,2552.9,2552.8,34.409]
[1748102125120,3.96711387,2552.9,2552.8,8.0]
[1748102125405,3.96711387,2552.9,2552.8,34.409]
[1748102125624,3.91726731,2552.8,2552.7,16.911]
[1748102125822,3.91726731,2552.8,2552.7,43.32]
[1748102126028,3.91726731,2552.8,2552.7,51.32]
[1748102126838,3.91726731,2552.8,2552.7,51.319]
[1748102129554,3.96717641,2552.9,2552.8,8.0]
[1748102129712,0.05,2552.9,2552.8,8.0]
[1748102129911,3.96711387,2552.9,2552.8,8.0]
[1748102134580,0.05,2552.9,2552.8,8.0]
[1748102135272,3.96711387,2552.9,2552.8,8.0]
[1748102135682,3.96711387,2552.9,2552.8,34.406]
[1748102136508,3.96711387,2552.9,2552.8,8.0]
[1748102136668,3.96711387,2552.9,2552.8,34.406]
[1748102139581,3.96711387,2552.9,2552.8,19.738]
[1748102139785,4.77381387,2552.9,2552.8,34.406]
[1748102140281,4.77381387,2552.9,2552.8,8.0]
[1748102140484,4.77381387,2552.9,2552.8,34.406]
[1748102140983,5.64289933,2552.9,2552.8,34.406]
[1748102141971,5.64289933,2552.9,2552.8,8.0]
[1748102142174,5.64289933,2552.9,2552.8,34.406]
[1748102142682,5.64289933,2552.9,2552.8,8.0]
[1748102142913,5.64289933,2552.9,2552.7,28.649]
[1748102142914,5.24486731,2552.8,2552.7,28.649]
[1748102143113,5.24486731,2552.8,2552.7,51.317]
[1748102143114,6.20086132,2552.8,2552.7,51.317]
[1748102144173,6.20086132,2552.8,2552.7,51.318]
[1748102145815,6.20086132,2552.8,2552.7,24.911]
[1748102146112,6.20086132,2552.8,2552.7,39.578]
[1748102146311,6.20086132,2552.8,2552.7,51.317]
[1748102147391,6.20086132,2552.8,2552.7,51.318]
[1748102148113,6.20086132,2552.8,2552.7,24.911]
[1748102148320,6.20086132,2552.8,2552.7,51.318]
[1748102149416,6.2401396,2552.8,2552.7,43.318]
[1748102149588,12.92360953,2552.8,2552.7,39.579]
[1748102150202,11.08141653,2552.8,2552.7,39.579]
[1748102150616,11.08141653,2552.8,2552.7,22.668]
[1748102151021,12.92360953,2552.8,2552.7,22.668]
[1748102151710,12.92360953,2552.8,2552.7,8.0]
[1748102151887,5.26012771,2552.5,2552.4,16.906]
[1748102152087,5.26012771,2552.5,2552.4,39.574]
[1748102152918,5.26012771,2552.5,2552.4,39.576]
[1748102153432,5.26012771,2552.5,2552.4,24.906]
[1748102153628,5.26012771,2552.5,2552.4,39.576]
[1748102153929,6.9314597,2552.5,2552.4,39.576]
[1748102155123,6.9314597,2552.5,2552.4,24.906]
[1748102155330,6.9314597,2552.5,2552.4,39.576]
[1748102155890,6.97073798,2552.5,2552.4,39.576]
[1748102156440,6.9314597,2552.5,2552.4,39.577]
[1748102157626,11.81201491,2552.5,2552.4,39.577]
[1748102160897,8.79828292,2552.5,2552.4,39.577]
[1748102161100,3.91772771,2552.5,2552.4,39.577]
[1748102162828,4.46772771,2552.5,2552.4,39.577]
[1748102162999,3.91772771,2552.5,2552.4,39.577]
[1748102169401,3.91772771,2552.5,2552.4,51.319]
[1748102170519,4.50700599,2552.5,2552.4,16.906]
[1748102170713,5.64300231,2552.5,2552.4,43.319]
[1748102171069,3.91772771,2552.5,2552.4,51.319]
[1748102179875,3.91772771,2552.5,2552.4,39.577]
[1748102180068,3.91772771,2552.5,2552.4,51.319]
[1748102185871,3.91772771,2552.5,2552.4,52.1077]
[1748102189181,3.91772771,2552.5,2552.4,51.319]
[1748102201015,0.05,2552.9,2552.5,8.7933]
[1748102201220,1.96150185,2553.4,2552.9,0.7933]
[1748102201423,1.96150185,2553.4,2553.2,0.7933]
[1748102201651,3.91650021,2553.3,2553.2,0.7933]
[1748102201807,3.91650021,2553.3,2553.2,35.2033]
[1748102202387,5.87800206,2553.3,2553.2,35.2033]
[1748102204033,5.87800206,2553.3,2553.2,35.2013]
[1748102204917,3.91650021,2553.3,2553.2,35.2013]
[1748102206413,3.91650021,2553.3,2553.2,34.853]
[1748102206606,3.91696043,2553.0,2552.9,0.826]
[1748102206828,3.91696043,2553.0,2552.9,27.679]
[1748102207023,3.91696043,2553.0,2552.9,8.0]
[1748102207222,3.91696043,2553.0,2552.9,34.852]
[1748102207622,3.91696043,2553.0,2552.9,8.0]
[1748102207829,3.91696043,2553.0,2552.9,34.851]
[1748102208434,3.91696043,2553.0,2552.9,8.0]
[1748102208645,3.91696043,2553.0,2552.9,34.851]
[1748102208942,3.91696043,2553.0,2552.9,8.0]
[1748102209150,3.91696043,2553.0,2552.9,34.851]
[1748102209314,3.91696043,2553.0,2552.9,26.851]
[1748102209516,4.36435411,2553.0,2552.9,34.851]
[1748102209833,4.74506043,2553.0,2552.9,34.851]
[1748102210203,3.91711387,2552.9,2552.0,0.59323377]
[1748102210467,3.918286,2552.2,2552.1,43.755]
[1748102210745,3.918286,2552.2,2552.1,52.5826]
[1748102212643,3.918286,2552.2,2552.1,25.7316]
[1748102212838,3.918286,2552.2,2552.1,52.5826]
[1748102215264,3.918286,2552.2,2552.1,25.7316]
[1748102215406,3.918286,2552.2,2552.1,43.755]
[1748102215754,3.918286,2552.2,2552.1,51.755]
[1748102216856,3.918286,2552.2,2552.1,51.756]
[1748102223143,3.918286,2552.2,2552.1,24.904]
[1748102223350,3.918286,2552.2,2552.1,51.759]
[1748102223868,3.918286,2552.2,2552.1,24.904]
[1748102224161,3.918286,2552.2,2552.1,51.759]
[1748102224326,3.918286,2552.2,2552.1,24.904]
[1748102224651,3.918286,2552.2,2552.1,51.759]
[1748102225009,3.918286,2552.2,2552.1,40.018]
[1748102225205,3.918286,2552.2,2552.1,43.759]
[1748102225432,4.70191843,2552.2,2552.1,51.759]
[1748102226032,3.918286,2552.2,2552.1,40.018]
[1748102226269,4.686186,2552.2,2552.1,51.759]
[1748102226851,4.686186,2552.2,2552.1,24.904]
[1748102227070,4.686186,2552.2,2552.1,51.759]
[1748102227562,5.236186,2552.2,2552.1,32.018]
[1748102227739,6.09660843,2552.2,2552.1,40.018]
[1748102228655,3.91926317,2551.5,2551.4,0.61214804]
[1748102228861,3.91926317,2551.5,2551.4,40.63514804]
[1748102229014,3.91926317,2551.5,2551.4,25.52014804]
[1748102229215,3.91926317,2551.5,2551.4,32.63514804]
[1748102229524,3.91926317,2551.5,2551.4,52.37614804]
[1748102231735,3.91926317,2551.5,2551.4,53.67614804]
[1748102240659,3.91926317,2551.5,2551.4,55.03778181]
[1748102242272,3.91922694,2551.6,2551.5,8.7684]
[1748102242473,3.91899372,2551.7,2551.5,9.36163377]
[1748102242676,3.91910957,2551.6,2551.5,8.7684]
[1748102242876,3.91910957,2551.6,2551.5,9.36163377]
[1748102243973,3.91910957,2551.6,2551.5,9.34679472]
[1748102246571,3.91910957,2551.6,2551.5,9.72108924]
[1748102247675,3.91906643,2551.7,2551.5,9.72108924]
[1748102247876,3.91906643,2551.7,2551.6,0.59323377]
[1748102248863,3.91879596,2551.9,2551.6,0.96752829]
[1748102249160,3.91882796,2551.8,2551.6,0.96752829]
[1748102250091,3.91882796,2551.8,2551.6,0.59323377]
[1748102251258,3.91872609,2551.9,2551.6,0.59323377]
[1748102251944,3.91882842,2551.8,2551.6,0.59323377]
[1748102254807,3.9187527,2551.9,2551.6,0.59323377]
[1748102255011,3.9187527,2551.9,2551.7,0.8091]
[1748102255354,3.91880241,2551.8,2551.7,0.8091]
[1748102257918,3.91854199,2552.0,2551.7,0.8091]
[1748102258227,3.91867514,2551.9,2551.7,1.40233377]
[1748102259824,0.7662,2552.6,2551.8,0.59323377]
[1748102260125,3.91825623,2552.2,2552.0,8.8091]
[1748102260318,3.91806757,2552.3,2552.1,19.743]
[1748102260521,3.91818822,2552.2,2552.1,19.743]
[1748102261303,3.91810795,2552.3,2552.2,8.0]
[1748102263858,3.91778265,2552.5,2552.2,8.0]
[1748102264144,3.91803471,2552.3,2552.2,8.0]
[1748102267935,3.91803471,2552.3,2552.2,24.908]
[1748102271408,3.91803471,2552.3,2552.2,25.50123377]
[1748102272707,3.91803471,2552.3,2552.2,25.87588541]
[1748102275262,3.91803471,2552.3,2552.2,25.50123377]
[1748102277170,3.91803471,2552.3,2552.2,25.87594137]
[1748102278674,3.91794618,2552.4,2552.2,25.87594137]
[1748102279463,3.91803471,2552.3,2552.2,25.87594137]
[1748102280068,3.91803471,2552.3,2552.2,25.50123377]
[1748102281171,3.91803471,2552.3,2552.2,26.25663377]
[1748102281681,3.9179639,2552.4,2552.2,26.25663377]
[1748102282573,3.91803471,2552.3,2552.2,25.50123377]
[1748102282787,3.91803471,2552.3,2552.2,37.24123377]
[1748102283901,3.91803471,2552.3,2552.2,36.648]
[1748102287416,3.91803471,2552.3,2552.2,37.02310517]
[1748102293589,3.91796192,2552.4,2552.2,37.02310517]
[1748102293790,3.91796192,2552.4,2552.3,22.846]
[1748102294628,3.91796192,2552.4,2552.3,24.146]
[1748102295725,3.91796192,2552.4,2552.3,24.52110517]
[1748102300742,3.91796192,2552.4,2552.3,26.36030976]
[1748102304145,3.91796192,2552.4,2552.3,43.26630976]
[1748102304657,3.91796192,2552.4,2552.3,55.00630976]
[1748102305961,3.91796192,2552.4,2552.3,54.87830976]
[1748102311183,3.91775963,2552.5,2552.4,8.0]
[1748102311343,3.91665361,2553.2,2552.5,0.7726]
[1748102311551,3.91665361,2553.2,2553.1,1.83920459]
[1748102311790,3.91665361,2553.2,2553.1,36.29720459]
[1748102314629,3.91665361,2553.2,2553.1,34.458]
[1748102316060,3.91650021,2553.3,2553.2,8.8282]
[1748102316255,3.91650021,2553.3,2553.2,10.66740459]
[1748102316724,3.91642579,2553.4,2553.2,10.66740459]
[1748102316992,6.63084183,2554.0,2553.4,8.0]
[1748102317190,3.91619345,2553.5,2553.4,8.0]
[1748102317495,3.91619345,2553.5,2553.4,19.739]
[1748102318572,3.91619345,2553.5,2553.4,21.57820459]
[1748102322388,3.91634683,2553.4,2553.3,16.905]
[1748102322703,5.96691518,2553.4,2553.3,51.356]
[1748102322918,4.71244683,2553.4,2553.3,53.19520459]
[1748102327026,4.71244683,2553.4,2553.3,41.45820459]
[1748102327254,4.71244683,2553.4,2553.3,53.19520459]
[1748102332897,3.91634683,2553.4,2553.3,53.19520459]
[1748102337336,3.91634683,2553.4,2553.3,53.19420459]
[1748102354166,3.91634683,2553.4,2553.3,53.56952179]
[1748102356493,3.91634683,2553.4,2553.3,54.86952179]
[1748102366333,3.91634683,2553.4,2553.3,43.13352179]
[1748102366538,3.91634683,2553.4,2553.3,54.86852179]
[1748102380388,3.91625574,2553.5,2553.4,8.0]
[1748102380568,3.91625574,2553.5,2553.4,9.83920459]
[1748102381665,3.91625574,2553.5,2553.4,10.21452179]
[1748102382414,3.91610112,2553.6,2553.4,10.21452179]
[1748102382617,3.91610112,2553.6,2553.5,1.83920459]
[1748102384319,3.91610112,2553.6,2553.5,2.21452179]
[1748102393034,4.72070112,2553.6,2553.5,8.3753172]
[1748102393236,5.50390628,2553.6,2553.5,20.1103172]
[1748102393738,5.50390628,2553.6,2553.5,21.20531323]
[1748102394237,4.72070112,2553.6,2553.5,21.20531323]
[1748102394633,4.72070112,2553.6,2553.5,9.47031323]
[1748102394833,4.72070112,2553.6,2553.5,19.734]
[1748102395155,4.72070112,2553.6,2553.5,21.20431323]
[1748102395352,4.72070112,2553.6,2553.5,19.734]
[1748102395631,5.58436628,2553.6,2553.5,19.734]
[1748102400673,4.72070112,2553.6,2553.5,19.734]
[1748102403455,3.91610112,2553.6,2553.5,19.734]
[1748102404963,3.91610112,2553.6,2553.5,9.83799374]
[1748102405249,3.91610112,2553.6,2553.5,36.25899374]
[1748102406483,4.72250112,2553.6,2553.5,14.686]
[1748102406777,5.58634628,2553.6,2553.5,34.421]
[1748102408350,5.58634628,2553.6,2553.5,22.686]
[1748102408563,5.58634628,2553.6,2553.5,34.421]
[1748102410140,6.17562456,2553.6,2553.5,22.686]
[1748102410387,6.13634628,2553.6,2553.5,22.686]
[1748102412040,6.17562456,2553.6,2553.5,14.686]
[1748102412241,6.13634628,2553.6,2553.5,14.686]